[Event "Titled Tuesday Blitz February 14 Late 2023"]
[White "Szente Varga, Fruzsina"]
[Black "Prem, Pranav"]
[WhiteFideId "712264"]
[BlackFideId "30901057"]
[WhiteElo "2075"]
[BlackElo "2061"]
[Result "0-1"]
[Round "02"]
[TimeControl "180+2"]
[Date "2023.02.14"]
[WhiteClock "0:00:01"]
[BlackClock "0:00:10"]

1. e4 {[%clk 0:03:00]}  c5 {[%clk 0:02:58]} 2. Nf3 {[%clk 0:03:00]}  d6 {[%clk 0:02:57]} 3. d4 {[%clk 0:03:00]}  cxd4 {[%clk 0:02:58]} 4. Qxd4 {[%clk 0:03:01]}  Nc6 {[%clk 0:02:50]} 5. Bb5 {[%clk 0:03:01]}  Bd7 {[%clk 0:02:37]} 6. Qd3 {[%clk 0:03:01]}  Nf6 {[%clk 0:02:34]} 7. c4 {[%clk 0:03:00]}  h6 {[%clk 0:02:32]} 8. Nc3 {[%clk 0:02:58]}  e5 {[%clk 0:02:28]} 9. O-O {[%clk 0:02:56]}  Be7 {[%clk 0:02:28]} 10. Rd1 {[%clk 0:02:37]}  O-O {[%clk 0:02:25]} 11. b3 {[%clk 0:01:38]}  a6 {[%clk 0:02:19]} 12. Bxc6 {[%clk 0:01:31]}  Bxc6 {[%clk 0:02:14]} 13. Ba3 {[%clk 0:01:26]}  Qa5 {[%clk 0:01:45]} 14. Bb2 {[%clk 0:01:10]}  Rfd8 {[%clk 0:01:36]} 15. a4 {[%clk 0:01:06]}  Rac8 {[%clk 0:01:33]} 16. Ba3 {[%clk 0:01:05]}  Qb6 {[%clk 0:01:28]} 17. b4 {[%clk 0:00:59]}  Be8 {[%clk 0:01:22]} 18. Rac1 {[%clk 0:00:47]}  Qc7 {[%clk 0:01:07]} 19. Nd2 {[%clk 0:00:32]}  Bd7 {[%clk 0:00:53]} 20. b5 {[%clk 0:00:24]}  Qb6 {[%clk 0:00:42]} 21. Bb4 {[%clk 0:00:19]}  Be6 {[%clk 0:00:37]} 22. a5 {[%clk 0:00:17]}  Qc7 {[%clk 0:00:37]} 23. Nd5 {[%clk 0:00:14]}  Bxd5 {[%clk 0:00:34]} 24. exd5 {[%clk 0:00:13]}  axb5 {[%clk 0:00:26]} 25. cxb5 {[%clk 0:00:13]}  Qxc1 {[%clk 0:00:26]} 26. Rxc1 {[%clk 0:00:14]}  Rxc1+ {[%clk 0:00:27]} 27. Nf1 {[%clk 0:00:15]}  Ra8 {[%clk 0:00:19]} 28. g3 {[%clk 0:00:14]}  Bd8 {[%clk 0:00:15]} 29. Qd2 {[%clk 0:00:14]}  Ra1 {[%clk 0:00:15]} 30. Bxd6 {[%clk 0:00:12]}  Bxa5 {[%clk 0:00:14]} 31. Qb2 {[%clk 0:00:10]}  Bb6 {[%clk 0:00:13]} 32. Bxe5 {[%clk 0:00:03]}  R1a2 {[%clk 0:00:13]} 33. Qb4 {[%clk 0:00:03]}  Rxf2 {[%clk 0:00:11]} 34. Bd4 {[%clk 0:00:02]}  Bxd4 {[%clk 0:00:11]} 35. Qxd4 {[%clk 0:00:03]}  Raa2 {[%clk 0:00:11]} 36. d6 {[%clk 0:00:01]}  Nd7 {[%clk 0:00:10]} 0-1


[Site "https://www.chess.com"]

[Event "Titled Tuesday Blitz February 14 Late 2023"]
[White "Sonnenschein, Philipp"]
[Black "Fernandez Siles, Luis"]
[WhiteFideId "16250877"]
[BlackFideId "2209420"]
[WhiteElo "2224"]
[BlackElo "2218"]
[Result "0-1"]
[Round "02"]
[TimeControl "180+2"]
[Date "2023.02.14"]
[WhiteClock "0:00:20"]
[BlackClock "0:00:36"]

1. e4 {[%clk 0:02:57]}  c5 {[%clk 0:02:59]} 2. Nf3 {[%clk 0:02:57]}  Nc6 {[%clk 0:02:59]} 3. Bb5 {[%clk 0:02:57]}  g6 {[%clk 0:02:59]} 4. O-O {[%clk 0:02:55]}  Bg7 {[%clk 0:02:59]} 5. c3 {[%clk 0:02:54]}  Nf6 {[%clk 0:02:59]} 6. Re1 {[%clk 0:02:53]}  O-O {[%clk 0:02:58]} 7. d4 {[%clk 0:02:53]}  d5 {[%clk 0:02:58]} 8. e5 {[%clk 0:02:52]}  Ne4 {[%clk 0:02:58]} 9. Bxc6 {[%clk 0:02:52]}  bxc6 {[%clk 0:02:57]} 10. Be3 {[%clk 0:02:53]}  Qb6 {[%clk 0:02:50]} 11. Qc1 {[%clk 0:02:52]}  c4 {[%clk 0:02:48]} 12. Nbd2 {[%clk 0:02:42]}  Nxd2 {[%clk 0:02:44]} 13. Nxd2 {[%clk 0:02:38]}  Bf5 {[%clk 0:02:44]} 14. b3 {[%clk 0:02:37]}  Bd3 {[%clk 0:02:42]} 15. Qa3 {[%clk 0:02:28]}  e6 {[%clk 0:02:38]} 16. bxc4 {[%clk 0:02:15]}  dxc4 {[%clk 0:02:39]} 17. d5 {[%clk 0:02:14]}  Qb5 {[%clk 0:02:13]} 18. dxe6 {[%clk 0:02:02]}  fxe6 {[%clk 0:02:11]} 19. Nf3 {[%clk 0:01:45]}  Rxf3 {[%clk 0:02:03]} 20. gxf3 {[%clk 0:01:45]}  Qd5 {[%clk 0:01:42]} 21. Qe7 {[%clk 0:01:36]}  Qxf3 {[%clk 0:01:34]} 22. Qxe6+ {[%clk 0:01:36]}  Kh8 {[%clk 0:01:34]} 23. Bg5 {[%clk 0:01:26]}  Bf5 {[%clk 0:01:24]} 24. Re3 {[%clk 0:00:51]}  Qg4+ {[%clk 0:01:19]} 25. Rg3 {[%clk 0:00:51]}  Bxe6 {[%clk 0:01:18]} 26. Rxg4 {[%clk 0:00:51]}  Bxg4 {[%clk 0:01:19]} 27. Bf4 {[%clk 0:00:46]}  Be6 {[%clk 0:01:16]} 28. Rb1 {[%clk 0:00:46]}  Rf8 {[%clk 0:01:14]} 29. Bg3 {[%clk 0:00:45]}  Rd8 {[%clk 0:01:05]} 30. Rb7 {[%clk 0:00:42]}  h5 {[%clk 0:00:59]} 31. Kf1 {[%clk 0:00:37]}  Bg4 {[%clk 0:00:56]} 32. Kg2 {[%clk 0:00:35]}  Bf5 {[%clk 0:00:49]} 33. Rxa7 {[%clk 0:00:34]}  Re8 {[%clk 0:00:49]} 34. Rc7 {[%clk 0:00:31]}  Bxe5 {[%clk 0:00:47]} 35. Bxe5+ {[%clk 0:00:32]}  Rxe5 {[%clk 0:00:48]} 36. Kg3 {[%clk 0:00:31]}  Be4 {[%clk 0:00:47]} 37. a4 {[%clk 0:00:29]}  Ra5 {[%clk 0:00:46]} 38. Re7 {[%clk 0:00:27]}  Bd5 {[%clk 0:00:45]} 39. Kf4 {[%clk 0:00:27]}  Kg8 {[%clk 0:00:43]} 40. Kg5 {[%clk 0:00:26]}  Bf7+ {[%clk 0:00:42]} 41. Kh6 {[%clk 0:00:24]}  Kf8 {[%clk 0:00:42]} 42. Rc7 {[%clk 0:00:23]}  Rxa4 {[%clk 0:00:41]} 43. Rxc6 {[%clk 0:00:24]}  Ra2 {[%clk 0:00:41]} 44. f4 {[%clk 0:00:22]}  Rxh2 {[%clk 0:00:40]} 45. Kg5 {[%clk 0:00:20]}  Re2 {[%clk 0:00:35]} 46. Kf6 {[%clk 0:00:19]}  Re6+ {[%clk 0:00:35]} 47. Rxe6 {[%clk 0:00:19]}  Bxe6 {[%clk 0:00:35]} 48. Kxe6 {[%clk 0:00:20]}  h4 {[%clk 0:00:36]} 0-1


[Site "https://www.chess.com"]

[Event "Titled Tuesday Blitz February 14 Late 2023"]
[White "Petrovic, Aleksa"]
[Black "Alfaro, William"]
[WhiteFideId "967629"]
[BlackFideId "6100457"]
[WhiteElo "2332"]
[BlackElo "2134"]
[Result "1/2-1/2"]
[Round "02"]
[TimeControl "180+2"]
[Date "2023.02.14"]
[WhiteClock "0:00:19"]
[BlackClock "0:00:33"]

1. d4 {[%clk 0:02:57]}  Nf6 {[%clk 0:02:59]} 2. c4 {[%clk 0:02:56]}  e5 {[%clk 0:02:57]} 3. dxe5 {[%clk 0:02:55]}  Ng4 {[%clk 0:02:57]} 4. Nf3 {[%clk 0:02:53]}  Bc5 {[%clk 0:02:56]} 5. Bg5 {[%clk 0:02:51]}  Bxf2+ {[%clk 0:02:44]} 6. Kd2 {[%clk 0:02:52]}  f6 {[%clk 0:02:44]} 7. exf6 {[%clk 0:02:45]}  gxf6 {[%clk 0:02:43]} 8. Bf4 {[%clk 0:02:30]}  Qe7 {[%clk 0:02:41]} 9. Nc3 {[%clk 0:02:08]}  Be3+ {[%clk 0:02:36]} 10. Bxe3 {[%clk 0:02:03]}  Qxe3+ {[%clk 0:02:37]} 11. Kc2 {[%clk 0:02:00]}  d6 {[%clk 0:02:20]} 12. Qd3 {[%clk 0:01:54]}  Qxd3+ {[%clk 0:02:07]} 13. exd3 {[%clk 0:01:55]}  Bf5 {[%clk 0:02:04]} 14. Re1+ {[%clk 0:01:49]}  Kd8 {[%clk 0:02:03]} 15. Kd2 {[%clk 0:01:44]}  Nc6 {[%clk 0:02:00]} 16. h3 {[%clk 0:01:39]}  Nge5 {[%clk 0:02:00]} 17. Nxe5 {[%clk 0:01:38]}  fxe5 {[%clk 0:01:57]} 18. g4 {[%clk 0:01:35]}  Bg6 {[%clk 0:01:54]} 19. Bg2 {[%clk 0:01:35]}  Kd7 {[%clk 0:01:54]} 20. h4 {[%clk 0:01:30]}  Nd4 {[%clk 0:01:49]} 21. h5 {[%clk 0:01:26]}  Bf7 {[%clk 0:01:49]} 22. Rhf1 {[%clk 0:01:21]}  Be6 {[%clk 0:01:47]} 23. Ne4 {[%clk 0:01:15]}  Raf8 {[%clk 0:01:34]} 24. g5 {[%clk 0:01:11]}  c6 {[%clk 0:01:27]} 25. g6 {[%clk 0:01:08]}  hxg6 {[%clk 0:01:26]} 26. hxg6 {[%clk 0:01:09]}  Rxf1 {[%clk 0:01:19]} 27. Rxf1 {[%clk 0:01:06]}  Rh2 {[%clk 0:01:17]} 28. Rf2 {[%clk 0:00:56]}  Nf5 {[%clk 0:01:15]} 29. Ng5 {[%clk 0:00:43]}  Nh4 {[%clk 0:01:10]} 30. Nxe6 {[%clk 0:00:37]}  Kxe6 {[%clk 0:01:08]} 31. g7 {[%clk 0:00:37]}  Nf3+ {[%clk 0:00:47]} 32. Bxf3 {[%clk 0:00:37]}  Rxf2+ {[%clk 0:00:46]} 33. Ke3 {[%clk 0:00:37]}  Rxf3+ {[%clk 0:00:47]} 34. Kxf3 {[%clk 0:00:35]}  Kf7 {[%clk 0:00:47]} 35. Ke4 {[%clk 0:00:27]}  Kxg7 {[%clk 0:00:46]} 36. c5 {[%clk 0:00:25]}  Kf6 {[%clk 0:00:36]} 37. cxd6 {[%clk 0:00:23]}  Ke6 {[%clk 0:00:36]} 38. d7 {[%clk 0:00:23]}  Kxd7 {[%clk 0:00:36]} 39. Kxe5 {[%clk 0:00:23]}  c5 {[%clk 0:00:34]} 40. Kd5 {[%clk 0:00:23]}  b6 {[%clk 0:00:34]} 41. a4 {[%clk 0:00:18]}  a5 {[%clk 0:00:32]} 42. Kc4 {[%clk 0:00:17]}  Kc6 {[%clk 0:00:32]} 43. b3 {[%clk 0:00:17]}  Kc7 {[%clk 0:00:30]} 44. Kb5 {[%clk 0:00:15]}  Kb7 {[%clk 0:00:30]} 45. Kc4 {[%clk 0:00:15]}  Kc6 {[%clk 0:00:31]} 46. d4 {[%clk 0:00:16]}  cxd4 {[%clk 0:00:31]} 47. Kxd4 {[%clk 0:00:16]}  Kd6 {[%clk 0:00:31]} 48. Kc4 {[%clk 0:00:17]}  Kc6 {[%clk 0:00:32]} 49. Kd4 {[%clk 0:00:16]}  Kd6 {[%clk 0:00:32]} 50. b4 {[%clk 0:00:17]}  axb4 {[%clk 0:00:31]} 51. Kc4 {[%clk 0:00:17]}  b3 {[%clk 0:00:31]} 52. Kxb3 {[%clk 0:00:17]}  Kc5 {[%clk 0:00:32]} 53. Kc3 {[%clk 0:00:17]}  b5 {[%clk 0:00:32]} 54. a5 {[%clk 0:00:18]}  b4+ {[%clk 0:00:32]} 55. Kb3 {[%clk 0:00:18]}  Kb5 {[%clk 0:00:33]} 56. a6 {[%clk 0:00:19]}  Kxa6 {[%clk 0:00:33]} 57. Kxb4 {[%clk 0:00:19]} 1/2-1/2


[Site "https://www.chess.com"]

[Event "Titled Tuesday Blitz February 14 Late 2023"]
[White "Liu, Casper"]
[Black "Fiorito, Francisco"]
[WhiteFideId "1454153"]
[BlackFideId "180165"]
[WhiteElo "2278"]
[BlackElo "2305"]
[Result "0-1"]
[Round "02"]
[TimeControl "180+2"]
[Date "2023.02.14"]
[WhiteClock "0:00:17"]
[BlackClock "0:00:22"]

1. d4 {[%clk 0:02:42]}  Nf6 {[%clk 0:02:59]} 2. Nf3 {[%clk 0:02:41]}  g6 {[%clk 0:03:00]} 3. h4 {[%clk 0:02:40]}  h5 {[%clk 0:02:59]} 4. c4 {[%clk 0:02:40]}  Bg7 {[%clk 0:02:58]} 5. Nc3 {[%clk 0:02:41]}  d5 {[%clk 0:02:59]} 6. cxd5 {[%clk 0:02:41]}  Nxd5 {[%clk 0:02:59]} 7. e4 {[%clk 0:02:41]}  Nxc3 {[%clk 0:02:59]} 8. bxc3 {[%clk 0:02:42]}  c5 {[%clk 0:03:00]} 9. Bb5+ {[%clk 0:02:41]}  Bd7 {[%clk 0:02:59]} 10. Bxd7+ {[%clk 0:02:41]}  Nxd7 {[%clk 0:03:00]} 11. Be3 {[%clk 0:02:42]}  Qa5 {[%clk 0:02:59]} 12. Qd2 {[%clk 0:02:39]}  Nb6 {[%clk 0:02:57]} 13. O-O {[%clk 0:02:37]}  Nc4 {[%clk 0:02:57]} 14. Qd3 {[%clk 0:02:33]}  Nxe3 {[%clk 0:02:57]} 15. fxe3 {[%clk 0:02:34]}  O-O {[%clk 0:02:57]} 16. e5 {[%clk 0:02:33]}  e6 {[%clk 0:02:51]} 17. Ng5 {[%clk 0:02:32]}  cxd4 {[%clk 0:02:47]} 18. exd4 {[%clk 0:02:31]}  Rac8 {[%clk 0:02:47]} 19. Nxe6 {[%clk 0:02:07]}  fxe6 {[%clk 0:02:31]} 20. Qxg6 {[%clk 0:02:07]}  Qxc3 {[%clk 0:02:27]} 21. Qxe6+ {[%clk 0:02:00]}  Kh8 {[%clk 0:02:27]} 22. Rad1 {[%clk 0:01:36]}  Qe3+ {[%clk 0:02:26]} 23. Kh1 {[%clk 0:01:30]}  Qe4 {[%clk 0:02:10]} 24. Rde1 {[%clk 0:01:15]}  Qxh4+ {[%clk 0:02:09]} 25. Kg1 {[%clk 0:01:13]}  Qxd4+ {[%clk 0:02:10]} 26. Kh2 {[%clk 0:01:13]}  Rce8 {[%clk 0:01:59]} 27. Qg6 {[%clk 0:01:09]}  Bxe5+ {[%clk 0:01:56]} 28. g3 {[%clk 0:01:02]}  Rf2+ {[%clk 0:01:41]} 29. Rxf2 {[%clk 0:00:51]}  Qxf2+ {[%clk 0:01:41]} 30. Kh3 {[%clk 0:00:51]}  Re7 {[%clk 0:01:21]} 31. Qh6+ {[%clk 0:00:43]}  Kg8 {[%clk 0:01:17]} 32. Qg6+ {[%clk 0:00:42]}  Kf8 {[%clk 0:01:11]} 33. Rd1 {[%clk 0:00:26]}  Qf7 {[%clk 0:00:20]} 34. Rd8+ {[%clk 0:00:20]}  Re8 {[%clk 0:00:21]} 35. Qh6+ {[%clk 0:00:21]}  Bg7 {[%clk 0:00:21]} 36. Qd6+ {[%clk 0:00:21]}  Kg8 {[%clk 0:00:21]} 37. Rxe8+ {[%clk 0:00:19]}  Qxe8 {[%clk 0:00:21]} 38. Qd5+ {[%clk 0:00:17]}  Qf7 {[%clk 0:00:22]} 39. Qd8+ {[%clk 0:00:17]}  Kh7 {[%clk 0:00:22]} 40. Qd3+ {[%clk 0:00:15]}  Qg6 {[%clk 0:00:23]} 41. Qd5 {[%clk 0:00:15]}  Qg4+ {[%clk 0:00:23]} 42. Kg2 {[%clk 0:00:14]}  h4 {[%clk 0:00:22]} 43. Qd3+ {[%clk 0:00:14]}  Qg6 {[%clk 0:00:23]} 44. Qxg6+ {[%clk 0:00:11]}  Kxg6 {[%clk 0:00:24]} 45. gxh4 {[%clk 0:00:12]}  Kh5 {[%clk 0:00:24]} 46. Kg3 {[%clk 0:00:11]}  Be5+ {[%clk 0:00:24]} 47. Kf3 {[%clk 0:00:11]}  Kxh4 {[%clk 0:00:24]} 48. Ke4 {[%clk 0:00:12]}  Bc7 {[%clk 0:00:25]} 49. Kd5 {[%clk 0:00:13]}  Kg5 {[%clk 0:00:26]} 50. Ke6 {[%clk 0:00:13]}  Kf4 {[%clk 0:00:26]} 51. Kd7 {[%clk 0:00:14]}  Be5 {[%clk 0:00:25]} 52. Kc8 {[%clk 0:00:14]}  b5 {[%clk 0:00:26]} 53. Kb7 {[%clk 0:00:14]}  Bd4 {[%clk 0:00:25]} 54. Ka6 {[%clk 0:00:14]}  b4 {[%clk 0:00:25]} 55. Kb5 {[%clk 0:00:14]}  Bc3 {[%clk 0:00:25]} 56. Kc4 {[%clk 0:00:12]}  Ke3 {[%clk 0:00:25]} 57. a3 {[%clk 0:00:13]}  a5 {[%clk 0:00:23]} 58. axb4 {[%clk 0:00:11]}  axb4 {[%clk 0:00:24]} 59. Kb3 {[%clk 0:00:12]}  Kd4 {[%clk 0:00:25]} 60. Kc2 {[%clk 0:00:12]}  Kc4 {[%clk 0:00:25]} 61. Kb1 {[%clk 0:00:13]}  Kb3 {[%clk 0:00:26]} 62. Kc1 {[%clk 0:00:14]}  Ka2 {[%clk 0:00:26]} 63. Kc2 {[%clk 0:00:14]}  Bh8 {[%clk 0:00:25]} 64. Kd3 {[%clk 0:00:14]}  b3 {[%clk 0:00:26]} 65. Kd2 {[%clk 0:00:15]}  b2 {[%clk 0:00:27]} 66. Ke2 {[%clk 0:00:15]}  b1=Q {[%clk 0:00:28]} 67. Kd2 {[%clk 0:00:16]}  Qb3 {[%clk 0:00:27]} 68. Kc1 {[%clk 0:00:16]}  Bf6 {[%clk 0:00:26]} 69. Kd2 {[%clk 0:00:16]}  Bg5+ {[%clk 0:00:26]} 70. Ke1 {[%clk 0:00:15]}  Qe3+ {[%clk 0:00:26]} 71. Kf1 {[%clk 0:00:15]}  Bh4 {[%clk 0:00:25]} 72. Kg2 {[%clk 0:00:16]}  Qf2+ {[%clk 0:00:24]} 73. Kh1 {[%clk 0:00:16]}  Qf3+ {[%clk 0:00:21]} 74. Kg1 {[%clk 0:00:16]}  Bf2+ {[%clk 0:00:21]} 75. Kh2 {[%clk 0:00:16]}  Qg3+ {[%clk 0:00:21]} 76. Kh1 {[%clk 0:00:17]}  Qg1# {[%clk 0:00:22]} 0-1


[Site "https://www.chess.com"]

[Event "Titled Tuesday Blitz February 14 Late 2023"]
[White "Toncheva, Nadya"]
[Black "Piriflillo"]
[WhiteFideId "2924056"]
[WhiteElo "2295"]
[BlackElo "2322"]
[Result "1/2-1/2"]
[Round "02"]
[TimeControl "180+2"]
[Date "2023.02.14"]
[WhiteClock "0:00:07"]
[BlackClock "0:00:03"]

1. e4 {[%clk 0:03:00]}  e5 {[%clk 0:02:59]} 2. Nf3 {[%clk 0:02:59]}  Nc6 {[%clk 0:02:59]} 3. Bb5 {[%clk 0:03:00]}  a6 {[%clk 0:03:00]} 4. Ba4 {[%clk 0:03:00]}  Nf6 {[%clk 0:02:59]} 5. O-O {[%clk 0:03:00]}  Nxe4 {[%clk 0:02:59]} 6. Re1 {[%clk 0:03:00]}  Nc5 {[%clk 0:02:59]} 7. Nxe5 {[%clk 0:03:00]}  Nxe5 {[%clk 0:02:53]} 8. Rxe5+ {[%clk 0:03:01]}  Be7 {[%clk 0:02:53]} 9. Bb3 {[%clk 0:02:55]}  Nxb3 {[%clk 0:02:53]} 10. axb3 {[%clk 0:02:56]}  O-O {[%clk 0:02:52]} 11. d4 {[%clk 0:02:55]}  d6 {[%clk 0:02:52]} 12. Re1 {[%clk 0:02:55]}  Bf6 {[%clk 0:02:52]} 13. Nc3 {[%clk 0:02:54]}  c6 {[%clk 0:02:36]} 14. Bf4 {[%clk 0:02:46]}  d5 {[%clk 0:02:36]} 15. Be5 {[%clk 0:02:40]}  Be7 {[%clk 0:02:30]} 16. Qf3 {[%clk 0:02:37]}  f6 {[%clk 0:02:20]} 17. Bg3 {[%clk 0:02:35]}  Re8 {[%clk 0:02:18]} 18. Re2 {[%clk 0:02:29]}  Bf8 {[%clk 0:02:12]} 19. Rae1 {[%clk 0:02:26]}  Bd7 {[%clk 0:02:11]} 20. h3 {[%clk 0:02:25]}  Qa5 {[%clk 0:02:03]} 21. Qd3 {[%clk 0:02:11]}  Bb4 {[%clk 0:01:53]} 22. Rxe8+ {[%clk 0:02:04]}  Rxe8 {[%clk 0:01:51]} 23. Rxe8+ {[%clk 0:02:04]}  Bxe8 {[%clk 0:01:52]} 24. Kh2 {[%clk 0:01:52]}  Qd8 {[%clk 0:01:50]} 25. Na4 {[%clk 0:01:40]}  Bg6 {[%clk 0:01:47]} 26. Qe2 {[%clk 0:01:33]}  Qe7 {[%clk 0:01:45]} 27. Qg4 {[%clk 0:01:02]}  h5 {[%clk 0:01:21]} 28. Qc8+ {[%clk 0:00:57]}  Kh7 {[%clk 0:01:21]} 29. c3 {[%clk 0:00:41]}  Bd6 {[%clk 0:01:16]} 30. b4 {[%clk 0:00:25]}  Bxg3+ {[%clk 0:01:14]} 31. fxg3 {[%clk 0:00:25]}  Qe2 {[%clk 0:01:15]} 32. h4 {[%clk 0:00:06]}  Be4 {[%clk 0:01:04]} 33. Qh3 {[%clk 0:00:06]}  g5 {[%clk 0:01:01]} 34. hxg5 {[%clk 0:00:06]}  fxg5 {[%clk 0:01:01]} 35. g4 {[%clk 0:00:06]}  Kg7 {[%clk 0:00:23]} 36. gxh5 {[%clk 0:00:06]}  g4 {[%clk 0:00:24]} 37. Qg3 {[%clk 0:00:06]}  Kh6 {[%clk 0:00:15]} 38. Nc5 {[%clk 0:00:06]}  Kxh5 {[%clk 0:00:13]} 39. Ne6 {[%clk 0:00:06]}  Qxb2 {[%clk 0:00:04]} 40. Nf4+ {[%clk 0:00:06]}  Kg5 {[%clk 0:00:04]} 41. Ne6+ {[%clk 0:00:06]}  Kf6 {[%clk 0:00:04]} 42. Qxg4 {[%clk 0:00:06]}  Bf5 {[%clk 0:00:03]} 43. Qg7+ {[%clk 0:00:04]}  Kxe6 {[%clk 0:00:03]} 44. Qg8+ {[%clk 0:00:05]}  Kd6 {[%clk 0:00:03]} 45. Qf8+ {[%clk 0:00:05]}  Ke6 {[%clk 0:00:02]} 46. Qg8+ {[%clk 0:00:06]}  Kd6 {[%clk 0:00:03]} 47. Qf8+ {[%clk 0:00:06]}  Ke6 {[%clk 0:00:03]} 48. Qg8+ {[%clk 0:00:07]} 1/2-1/2


[Site "https://www.chess.com"]

[Event "Titled Tuesday Blitz February 14 Late 2023"]
[White "Benmesbah, Natacha"]
[Black "Strahov, Andrej"]
[WhiteFideId "642002"]
[BlackFideId "4165489"]
[WhiteElo "2261"]
[BlackElo "2398"]
[Result "1-0"]
[Round "02"]
[TimeControl "180+2"]
[Date "2023.02.14"]
[WhiteClock "0:01:21"]
[BlackClock "0:01:27"]

1. e4 {[%clk 0:03:00]}  d5 {[%clk 0:02:57]} 2. exd5 {[%clk 0:03:00]}  Qxd5 {[%clk 0:02:56]} 3. Nc3 {[%clk 0:03:00]}  Qa5 {[%clk 0:02:52]} 4. d4 {[%clk 0:02:59]}  Nf6 {[%clk 0:02:50]} 5. Bc4 {[%clk 0:02:55]}  Bf5 {[%clk 0:02:45]} 6. Nf3 {[%clk 0:02:46]}  e6 {[%clk 0:02:41]} 7. Ne5 {[%clk 0:02:20]}  Nbd7 {[%clk 0:02:28]} 8. Bf4 {[%clk 0:02:13]}  c6 {[%clk 0:02:19]} 9. Qd2 {[%clk 0:02:09]}  Be7 {[%clk 0:02:11]} 10. O-O {[%clk 0:02:06]}  O-O {[%clk 0:02:04]} 11. a3 {[%clk 0:02:05]}  Nxe5 {[%clk 0:01:42]} 12. dxe5 {[%clk 0:02:01]}  Nd5 {[%clk 0:01:43]} 13. Nxd5 {[%clk 0:01:32]}  Qxd2 {[%clk 0:01:38]} 14. Nxe7+ {[%clk 0:01:31]}  Kh8 {[%clk 0:01:38]} 15. Bxd2 {[%clk 0:01:32]}  Bxc2 {[%clk 0:01:38]} 16. Rac1 {[%clk 0:01:25]}  Ba4 {[%clk 0:01:31]} 17. b3 {[%clk 0:01:22]}  Rfe8 {[%clk 0:01:27]} 18. bxa4 {[%clk 0:01:21]}  Rxe7 {[%clk 0:01:27]} 19. Bb4 {[%clk 0:01:21]} 1-0


[Site "https://www.chess.com"]

[Event "Titled Tuesday Blitz February 14 Late 2023"]
[White "Bas Mas, Jose Joaquin"]
[Black "Ardila, Oscar Humberto"]
[WhiteFideId "22219064"]
[BlackFideId "4404742"]
[WhiteElo "2197"]
[BlackElo "1982"]
[Result "1-0"]
[Round "02"]
[TimeControl "180+2"]
[Date "2023.02.14"]
[WhiteClock "0:02:14"]
[BlackClock "0:02:06"]

1. e4 {[%clk 0:03:00]}  e5 {[%clk 0:03:00]} 2. Bc4 {[%clk 0:02:58]}  Nf6 {[%clk 0:02:59]} 3. d3 {[%clk 0:02:58]}  Bc5 {[%clk 0:02:59]} 4. Nc3 {[%clk 0:02:57]}  d6 {[%clk 0:02:57]} 5. f4 {[%clk 0:02:43]}  Bg4 {[%clk 0:02:55]} 6. Nf3 {[%clk 0:02:43]}  Nc6 {[%clk 0:02:53]} 7. h3 {[%clk 0:02:43]}  Bxf3 {[%clk 0:02:53]} 8. Qxf3 {[%clk 0:02:44]}  Nd4 {[%clk 0:02:53]} 9. Qg3 {[%clk 0:02:45]}  Nxc2+ {[%clk 0:02:51]} 10. Kd1 {[%clk 0:02:44]}  Nxa1 {[%clk 0:02:51]} 11. Qxg7 {[%clk 0:02:44]}  Rf8 {[%clk 0:02:40]} 12. fxe5 {[%clk 0:02:44]}  Nh5 {[%clk 0:02:32]} 13. Qg4 {[%clk 0:02:33]}  dxe5 {[%clk 0:02:18]} 14. Qxh5 {[%clk 0:02:32]}  Qf6 {[%clk 0:02:12]} 15. Nd5 {[%clk 0:02:23]}  Qf2 {[%clk 0:02:10]} 16. Qxe5+ {[%clk 0:02:19]}  Kd8 {[%clk 0:02:06]} 17. Qxc7+ {[%clk 0:02:13]}  Ke8 {[%clk 0:02:06]} 18. Bb5# {[%clk 0:02:14]} 1-0


[Site "https://www.chess.com"]

[Event "Titled Tuesday Blitz February 14 Late 2023"]
[White "Santos Flores, Alberto"]
[Black "Buscar, Michael"]
[WhiteFideId "3601234"]
[BlackFideId "2603616"]
[WhiteElo "2164"]
[BlackElo "2041"]
[Result "1-0"]
[Round "02"]
[TimeControl "180+2"]
[Date "2023.02.14"]
[WhiteClock "0:01:30"]
[BlackClock "0:01:36"]

1. e4 {[%clk 0:03:00]}  c5 {[%clk 0:02:59]} 2. Nf3 {[%clk 0:03:01]}  Nc6 {[%clk 0:03:00]} 3. Nc3 {[%clk 0:03:00]}  Nf6 {[%clk 0:02:59]} 4. d4 {[%clk 0:03:00]}  cxd4 {[%clk 0:02:59]} 5. Nxd4 {[%clk 0:03:01]}  e5 {[%clk 0:02:59]} 6. Ndb5 {[%clk 0:03:01]}  h6 {[%clk 0:03:00]} 7. Nd6+ {[%clk 0:02:47]}  Bxd6 {[%clk 0:03:00]} 8. Qxd6 {[%clk 0:02:48]}  Qe7 {[%clk 0:03:00]} 9. Qxe7+ {[%clk 0:02:48]}  Kxe7 {[%clk 0:03:01]} 10. Bc4 {[%clk 0:02:35]}  Rd8 {[%clk 0:03:01]} 11. Be3 {[%clk 0:02:31]}  d6 {[%clk 0:03:02]} 12. O-O-O {[%clk 0:02:25]}  Be6 {[%clk 0:03:02]} 13. Nd5+ {[%clk 0:02:23]}  Bxd5 {[%clk 0:03:02]} 14. Bxd5 {[%clk 0:02:23]}  Nxd5 {[%clk 0:03:01]} 15. Rxd5 {[%clk 0:02:22]}  Ke6 {[%clk 0:02:51]} 16. a3 {[%clk 0:02:16]}  f5 {[%clk 0:02:49]} 17. f3 {[%clk 0:02:15]}  Ne7 {[%clk 0:02:44]} 18. Rd3 {[%clk 0:02:11]}  d5 {[%clk 0:02:39]} 19. exd5+ {[%clk 0:02:11]}  Rxd5 {[%clk 0:02:38]} 20. Rhd1 {[%clk 0:02:08]}  b6 {[%clk 0:02:35]} 21. Bf2 {[%clk 0:01:59]}  Rad8 {[%clk 0:02:34]} 22. Rxd5 {[%clk 0:01:58]}  Rxd5 {[%clk 0:02:35]} 23. c4 {[%clk 0:01:54]}  Rxd1+ {[%clk 0:02:27]} 24. Kxd1 {[%clk 0:01:55]}  g5 {[%clk 0:02:22]} 25. Kc2 {[%clk 0:01:53]}  Kd6 {[%clk 0:02:17]} 26. b4 {[%clk 0:01:52]}  Ng6 {[%clk 0:02:17]} 27. g4 {[%clk 0:01:45]}  f4 {[%clk 0:01:56]} 28. Kd3 {[%clk 0:01:43]}  Nf8 {[%clk 0:01:44]} 29. c5+ {[%clk 0:01:41]}  Kc6 {[%clk 0:01:42]} 30. cxb6 {[%clk 0:01:40]}  axb6 {[%clk 0:01:41]} 31. Ke4 {[%clk 0:01:40]}  Nd7 {[%clk 0:01:37]} 32. a4 {[%clk 0:01:40]}  Kd6 {[%clk 0:01:35]} 33. a5 {[%clk 0:01:32]}  bxa5 {[%clk 0:01:35]} 34. bxa5 {[%clk 0:01:33]}  Kc6 {[%clk 0:01:36]} 35. a6 {[%clk 0:01:30]} 1-0


[Site "https://www.chess.com"]